bitfinex/quotes_SOLUSD_20250901
["timestamp","ask_amount","ask_price","bid_price","bid_amount"]
[1756744311822,26.0,198.47,198.45,0.68]
[1756744312034,3.32443727,198.46,198.45,0.68]
[1756744312224,24.50998942,198.45,198.43,39.6]
[1756744312429,3.32443727,198.44,198.43,39.6]
[1756744313317,26.0,198.42,198.4,13.79559401]
[1756744313520,33.23896694,198.42,198.41,53.17559401]
[1756744314135,33.23896694,198.42,198.41,53.85559401]
[1756744314449,4.83302763,198.54,198.41,53.85559401]
[1756744314450,26.0,198.52,198.43,13.59559401]
[1756744314655,0.14216157,198.5,198.44,0.68]
[1756744314830,3.3346362,198.5,198.44,0.68]
[1756744315026,10.65819266,198.5,198.44,0.68]
[1756744315241,3.3346362,198.49,198.45,13.59559401]
[1756744315440,3.3346362,198.49,198.47,13.59559401]
[1756744315631,7.48766383,198.57,198.48,0.64232903]
[1756744315827,26.0,198.54,198.48,0.64232903]
[1756744316029,3.3346362,198.53,198.48,0.64232903]
[1756744316232,3.3346362,198.53,198.49,13.59559401]
[1756744316448,26.0,198.53,198.49,13.59559401]
[1756744316754,24.47231845,198.51,198.49,33.59559401]
[1756744316942,3.3346362,198.5,198.49,33.59559401]
[1756744317127,24.47231845,198.51,198.5,20.0]
[1756744317853,24.47231845,198.51,198.5,20.68]
[1756744318946,24.47231845,198.51,198.5,34.27559401]
[1756744319263,24.47231845,198.51,198.5,41.1085005]
[1756744319558,24.47231845,198.51,198.5,34.27559401]
[1756744319935,24.47231845,198.51,198.5,73.85559401]
[1756744320246,24.47231845,198.51,198.5,85.86844544]
[1756744320430,0.70231845,198.51,198.5,85.86844544]
[1756744320627,0.70231845,198.51,198.5,79.03553895]
[1756744320828,0.70231845,198.51,198.5,85.86844544]
[1756744321144,0.70231845,198.51,198.5,46.28844544]
[1756744321342,0.70231845,198.51,198.5,85.86844544]
[1756744322246,0.70231845,198.51,198.5,73.99775558]
[1756744322429,0.70231845,198.51,198.5,80.83066207]
[1756744323442,0.70231845,198.51,198.5,85.86844544]
[1756744323654,0.03,198.57,198.56,33.73775558]
[1756744323830,0.03,198.57,198.56,80.15066207]
[1756744324036,0.03,198.57,198.56,80.83066207]
[1756744324636,0.03,198.57,198.56,41.25066207]
[1756744325156,0.03,198.57,198.56,34.41775558]
[1756744325352,0.03,198.57,198.56,74.01775558]
[1756744325662,0.03,198.57,198.56,73.87559401]
[1756744326155,0.03,198.57,198.56,34.27559401]
[1756744326461,0.03,198.57,198.56,59.6]
[1756744326833,0.03,198.57,198.56,73.90559401]
[1756744327449,0.03,198.57,198.56,59.62]
[1756744327854,0.03,198.57,198.56,73.92559401]
[1756744328339,0.03,198.57,198.56,73.94559401]
[1756744329179,0.03,198.57,198.56,34.30559401]
[1756744329352,0.03,198.57,198.56,33.59559401]
[1756744329551,0.03,198.57,198.56,73.21559401]
[1756744330269,0.03,198.57,198.56,73.92559401]
[1756744330772,0.03,198.57,198.56,80.7585005]
[1756744330946,0.03,198.57,198.56,80.90066207]
[1756744331148,0.03,198.57,198.56,82.91908007]
[1756744331355,0.03,198.57,198.56,80.90066207]
[1756744331869,0.03,198.57,198.56,85.93692314]
[1756744332072,0.03,198.57,198.56,122.25692314]
[1756744332857,0.03,198.57,198.56,82.63692314]
[1756744333059,0.03,198.57,198.56,75.80401665]
[1756744333264,0.03,198.57,198.56,122.23692314]
[1756744334870,0.03,198.57,198.56,82.63692314]
[1756744335367,0.03,198.57,198.56,110.36775558]
[1756744335963,0.03,198.57,198.56,70.76775558]
[1756744336159,0.03,198.57,198.56,110.22559401]
[1756744336459,0.03,198.57,198.56,70.76775558]
[1756744336662,0.03,198.57,198.56,110.22559401]
[1756744337174,0.03,198.57,198.56,110.36775558]
[1756744337365,0.03,198.57,198.56,109.76578159]
[1756744338192,0.03,198.57,198.56,114.80204266]
[1756744338478,0.03,198.57,198.56,109.76578159]
[1756744339490,0.03,198.57,198.56,114.80204266]
[1756744339681,0.03,198.57,198.56,121.63494915]
[1756744339983,0.03,198.57,198.56,116.59868808]
[1756744340452,0.03,198.57,198.56,121.63494915]
[1756744341781,0.03,198.59,198.57,13.73775558]
[1756744341964,0.03,198.59,198.58,79.54868808]
[1756744342166,0.03,198.59,198.58,80.25868808]
[1756744342972,0.03,198.59,198.58,87.31235093]
[1756744343161,0.03,198.59,198.58,85.29444193]
[1756744343596,0.03,198.61,198.59,13.73775558]
[1756744343896,0.03,198.61,198.6,79.52868808]
[1756744344072,0.03,198.61,198.6,80.23868808]
[1756744344692,0.03,198.61,198.6,87.2916398]
[1756744345069,0.03,198.61,198.6,85.2739348]
[1756744345267,0.03,198.61,198.6,45.7139348]
[1756744345468,0.03,198.61,198.6,78.44102831]
[1756744345723,0.03,198.61,198.6,85.2739348]
[1756744348397,0.03,198.63,198.62,33.13578159]
[1756744348608,0.03,198.63,198.62,79.52868808]
[1756744348805,0.03,198.63,198.62,82.25608808]
[1756744349720,0.03,198.63,198.62,47.73082778]
[1756744349899,0.03,198.63,198.62,87.29082778]
[1756744350105,0.03,198.63,198.62,80.45792129]
[1756744350289,0.03,198.63,198.62,87.29082778]
[1756744350689,0.03,198.63,198.62,85.27342778]
[1756744351294,0.03,198.63,198.62,85.29342778]
[1756744352122,0.03,198.63,198.62,45.71342778]
[1756744352327,0.03,198.63,198.62,85.29342778]
[1756744353024,0.03,198.65,198.64,33.13578159]
[1756744353268,0.03,198.65,198.64,113.43578159]
[1756744353401,0.03,198.65,198.64,160.55868808]
[1756744354309,0.03,198.65,198.64,164.88292086]
[1756744355019,0.03,198.65,198.64,165.60292086]
[1756744355205,0.03,198.65,198.64,118.47001437]
[1756744355390,0.03,198.65,198.64,33.13578159]
[1756744355591,0.03,198.65,198.64,72.55362002]
[1756744355996,0.71,198.65,198.64,72.55362002]
[1756744356221,0.71,198.65,198.64,72.57362002]
[1756744356631,0.03,198.65,198.64,72.71578159]
[1756744356930,0.03,198.65,198.64,82.73529772]
[1756744357102,0.03,198.65,198.64,82.01529772]
[1756744357424,0.03,198.65,198.64,82.73529772]
[1756744358124,0.03,198.65,198.64,77.75001437]
[1756744358520,0.03,198.65,198.64,72.71578159]
[1756744358724,0.03,198.65,198.64,33.13578159]
[1756744359023,0.03,198.65,198.64,80.25661962]
[1756744359197,0.03,198.65,198.64,85.2908524]
[1756744359607,0.03,198.67,198.66,32.99362002]
[1756744359815,0.03,198.67,198.66,79.55661962]
[1756744360101,0.03,198.67,198.66,80.29661962]
[1756744360707,0.03,198.67,198.66,33.13578159]
[1756744360924,0.03,198.67,198.66,72.75578159]
[1756744361612,0.03,198.67,198.66,77.78950755]
[1756744362116,0.03,198.67,198.66,72.75578159]
[1756744362622,0.03,198.67,198.66,77.75183658]
[1756744362823,0.03,198.67,198.66,78.47183658]
[1756744363212,0.03,198.67,198.66,80.25894865]
[1756744364561,0.03,198.69,198.68,39.91894865]
[1756744364739,0.03,198.69,198.68,79.55894865]
[1756744365024,0.03,198.69,198.68,80.27894865]
[1756744365408,0.03,198.69,198.68,85.31216789]
[1756744366027,0.03,198.69,198.68,85.81548981]
[1756744366629,0.03,198.69,198.68,87.83238181]
[1756744367728,0.03,198.69,198.68,84.59216789]
[1756744367938,0.03,198.69,198.68,84.55216789]
[1756744368117,0.03,198.69,198.68,84.41000632]
[1756744368675,0.03,198.69,198.68,84.55216789]
[1756744369041,0.03,198.69,198.68,78.45132986]
[1756744369261,0.03,198.69,198.68,85.27216789]
[1756744369777,0.03,198.69,198.68,84.55216789]
[1756744370855,0.71,198.69,198.68,32.95594905]
[1756744371164,0.03,198.69,198.68,72.53594905]
[1756744371364,0.03,198.69,198.68,84.53216789]
[1756744371776,0.03,198.69,198.68,77.56916829]
[1756744372084,0.71,198.69,198.68,77.56916829]
[1756744372365,0.03,198.69,198.68,77.71132986]
[1756744374864,0.03,198.69,198.68,85.25216789]
[1756744375067,0.03,198.69,198.68,121.53216789]
[1756744375368,0.03,198.71,198.7,32.95594905]
[1756744375543,0.03,198.71,198.7,79.98221991]
[1756744375739,0.03,198.71,198.7,80.70221991]
[1756744376558,0.03,198.71,198.7,85.73493254]
[1756744378270,0.03,198.71,198.7,84.51166128]
[1756744378847,0.03,198.71,198.7,85.23166128]
[1756744380262,0.03,198.71,198.7,84.51166128]
[1756744381281,0.71,198.71,198.7,32.95594905]
[1756744381483,0.71,198.71,198.7,19.36035504]
[1756744381849,0.71,198.71,198.7,72.49594905]
[1756744382276,0.03,198.71,198.7,72.49594905]
[1756744382456,0.03,198.71,198.7,72.63811062]
[1756744382863,0.03,198.71,198.7,77.67082325]
[1756744383463,0.03,198.71,198.7,85.21166128]
[1756744384074,0.03,198.71,198.7,84.53166128]
[1756744384575,0.03,198.71,198.7,44.95166128]
[1756744384778,0.03,198.71,198.7,33.09811062]
[1756744385073,0.03,198.71,198.7,72.65811062]
[1756744385279,0.03,198.71,198.7,85.23166128]
[1756744385581,0.03,198.71,198.7,84.51166128]
[1756744385761,0.03,198.71,198.7,77.69082325]
[1756744386190,0.03,198.71,198.7,84.51166128]
[1756744386480,0.03,198.71,198.7,85.23166128]
[1756744387196,1e-08,198.72,198.71,33.09811062]
[1756744387361,1e-08,198.74,198.73,59.09811062]
[1756744387563,1e-08,198.77,198.76,13.73775558]
[1756744387860,1e-08,198.77,198.76,39.91894865]
[1756744388065,1e-08,198.77,198.76,80.27894865]
[1756744388590,1e-08,198.77,198.76,85.31014204]
[1756744388764,0.67,198.86,198.8,20.55859361]
[1756744388765,3.37947538,198.84,198.8,20.55859361]
[1756744388962,3.37947538,198.85,198.8,79.55894865]
[1756744389164,3.37947538,198.85,198.8,80.27894865]
[1756744389364,0.67,198.86,198.8,80.27894865]
[1756744389589,4.04518799,198.86,198.8,80.27894865]
[1756744389783,4.04518799,198.86,198.8,85.30912973]
[1756744389966,4.04518799,198.86,198.8,84.58912973]
[1756744390165,0.67,198.86,198.8,84.58912973]
[1756744390775,0.67,198.86,198.8,85.30912973]
[1756744391180,4.04522683,198.86,198.8,85.30912973]
[1756744391385,3.37522683,198.85,198.8,85.30912973]
[1756744391788,0.67,198.86,198.8,85.30912973]
[1756744392192,0.67,198.86,198.8,44.94912973]
[1756744392388,0.67,198.86,198.8,84.58912973]
[1756744392980,0.67,198.84,198.8,72.71811062]
[1756744393487,0.03,198.83,198.8,72.71811062]
[1756744394871,0.77,198.81,198.8,33.09811062]
[1756744395083,0.77,198.81,198.8,72.71811062]
[1756744395476,0.1,198.81,198.8,72.71811062]
[1756744396186,0.1,198.81,198.8,33.09811062]
[1756744396387,0.77,198.81,198.8,72.55594905]
[1756744396994,0.77,198.81,198.8,32.95594905]
[1756744397291,0.77,198.81,198.8,19.36035504]
[1756744397464,26.77,198.81,198.79,19.36035504]
[1756744397670,4.03995829,198.8,198.79,19.36035504]
[1756744397894,30.03995829,198.8,198.79,39.62]
[1756744398391,30.03995829,198.8,198.79,58.98035504]
[1756744398594,30.03995829,198.8,198.78,19.36035504]
[1756744398781,26.0,198.8,198.79,58.98035504]
[1756744398974,29.36904491,198.8,198.79,39.62]
[1756744399369,26.0,198.79,198.77,19.36035504]
[1756744399594,30.03904491,198.78,198.74,19.36035504]
[1756744399891,4.03904491,198.77,198.75,27.0]
[1756744400097,30.03904491,198.76,198.75,27.0]
[1756744400297,4.03904491,198.76,198.75,27.0]
[1756744400801,4.03904491,198.76,198.71,19.36035504]
[1756744400980,26.0,198.73,198.72,39.62]
[1756744401170,30.03904491,198.73,198.72,58.98035504]
[1756744402375,30.03904491,198.73,198.72,39.62]
[1756744402578,30.03904491,198.73,198.72,58.98035504]
[1756744405404,30.03904491,198.73,198.72,39.62]
[1756744405594,30.03904491,198.73,198.72,58.98035504]
[1756744407903,30.03904491,198.73,198.72,39.62]
[1756744408093,30.03904491,198.73,198.72,58.98035504]
[1756744408801,30.03904491,198.73,198.72,39.62]
[1756744409003,29.36904491,198.73,198.72,58.98035504]
[1756744409206,30.03904491,198.73,198.72,39.62]
[1756744409407,30.03904491,198.73,198.72,58.98035504]
[1756744409984,29.36904491,198.73,198.72,58.98035504]
[1756744410187,3.36904491,198.73,198.72,73.29594905]
[1756744410386,26.0,198.74,198.73,32.95594905]
[1756744410592,29.36904491,198.74,198.73,32.95594905]
[1756744410887,3.36904491,198.74,198.73,32.95594905]
[1756744411204,3.36904491,198.75,198.74,32.95594905]
[1756744411407,3.36904491,198.75,198.74,72.51594905]
[1756744411610,3.36904491,198.76,198.75,19.36035504]
[1756744411789,26.0,198.76,198.75,19.36035504]
[1756744411988,29.36904491,198.76,198.75,19.36035504]
[1756744412896,3.36904491,198.76,198.75,19.36035504]
[1756744413399,3.36904491,198.76,198.75,33.67594905]
[1756744413607,4.19701038,198.8,198.75,33.67594905]
[1756744413608,29.36904491,198.79,198.75,33.67594905]
[1756744413804,0.1,198.81,198.78,32.95594905]
[1756744414117,29.472762,198.81,198.79,58.90035504]
[1756744414322,26.1,198.81,198.8,19.36035504]
[1756744414528,29.47379704,198.81,198.8,19.36035504]
[1756744416103,29.47379704,198.81,198.8,32.95594905]
[1756744416299,29.47379704,198.81,198.8,72.47594905]
[1756744416517,3.47379704,198.81,198.8,72.47594905]
[1756744416816,26.1,198.81,198.8,72.47594905]
[1756744417007,29.47379704,198.81,198.8,72.47594905]
[1756744417206,30.17379704,198.81,198.8,19.36035504]
[1756744417591,4.17379704,198.81,198.8,58.88035504]
[1756744418003,4.17379704,198.81,198.8,58.90035504]
[1756744420024,30.17379704,198.81,198.78,19.36035504]
[1756744420325,30.07379704,198.8,198.78,19.36035504]
[1756744420531,30.19701038,198.8,198.78,19.33245121]
[1756744420726,0.1,198.81,198.76,19.33245121]
[1756744420727,26.0,198.77,198.76,19.33245121]
[1756744420913,29.37467911,198.77,198.76,58.83245121]
[1756744421316,3.37467911,198.77,198.76,59.53245121]
[1756744421506,26.0,198.77,198.76,59.53245121]
[1756744421707,29.37467911,198.77,198.76,58.83245121]
[1756744422026,3.37467911,198.77,198.76,58.83245121]
[1756744422207,26.0,198.77,198.76,58.83245121]
[1756744422407,29.37467911,198.77,198.76,58.83245121]
[1756744422624,3.37467911,198.77,198.76,58.83245121]
[1756744422922,26.0,198.77,198.76,58.83245121]
[1756744423122,29.37467911,198.77,198.76,58.83245121]
[1756744423324,3.37467911,198.77,198.76,58.83245121]
[1756744423514,26.0,198.77,198.76,58.83245121]
[1756744423826,29.37467911,198.77,198.76,58.83245121]
[1756744424612,3.37467911,198.77,198.76,73.12804522]
[1756744424919,3.37467911,198.78,198.77,32.92804522]
[1756744425227,29.37467911,198.8,198.79,19.33245121]
[1756744425411,3.37467911,198.8,198.79,73.12804522]
[1756744425618,0.1,198.81,198.79,73.12804522]
[1756744425920,0.1,198.81,198.8,0.7]
[1756744426127,0.1,198.81,198.8,20.03245121]
[1756744426509,0.1,198.81,198.8,59.59245121]
[1756744428834,0.1,198.81,198.8,73.18804522]
[1756744431045,0.1,198.81,198.8,73.33020679]
[1756744431636,0.1,198.81,198.8,33.62804522]
[1756744431831,0.1,198.81,198.8,73.12804522]
[1756744433924,0.1,198.81,198.8,78.30038787]
[1756744434131,0.1,198.81,198.8,85.11324554]
[1756744436361,0.1,198.81,198.8,80.08306446]
[1756744436537,0.1,198.81,198.8,73.27020679]
[1756744437064,0.1,198.81,198.8,33.77020679]
[1756744437240,0.1,198.81,198.8,73.27020679]
[1756744438758,0.1,198.81,198.8,33.77020679]
[1756744439057,0.1,198.81,198.8,73.23020679]
[1756744439232,0.1,198.81,198.8,73.08804522]
[1756744439429,0.1,198.81,198.8,73.23020679]
[1756744440159,0.1,198.81,198.8,78.26038787]
[1756744440337,0.1,198.81,198.8,73.23020679]
[1756744441159,0.1,198.81,198.8,85.57626364]
[1756744441861,0.1,198.81,198.8,87.59203764]
[1756744443591,0.1,198.81,198.8,87.08901954]
[1756744443880,0.1,198.81,198.8,85.07324554]
[1756744444663,0.1,198.81,198.8,33.77020679]
[1756744445089,0.1,198.81,198.8,73.23020679]
[1756744445679,0.1,198.81,198.8,72.40804522]
[1756744446093,0.1,198.81,198.8,32.92804522]
[1756744446288,0.1,198.81,198.8,72.40804522]
[1756744450947,0.78,198.81,198.8,32.92804522]
[1756744451149,0.78,198.81,198.8,19.33245121]
[1756744451363,4.15062436,198.81,198.8,39.44]
[1756744451672,8.36430785,198.81,198.79,0.12]
[1756744451980,33.58430785,198.8,198.79,0.12]
[1756744452277,33.58430785,198.8,198.79,32.64]
[1756744452479,34.26430785,198.8,198.79,32.64]
[1756744452685,4.05062436,198.8,198.79,24.13460307]
[1756744453351,8.26868938,198.8,198.79,24.13460307]
[1756744458877,7.58868938,198.8,198.79,24.13460307]
[1756744459057,3.37062436,198.8,198.79,43.46705428]
[1756744459382,3.47062436,198.81,198.8,19.33245121]
[1756744459768,0.1,198.81,198.8,19.33245121]
[1756744460985,26.1,198.81,198.8,19.33245121]
[1756744461192,29.47062436,198.81,198.8,19.33245121]
[1756744462590,4.15062436,198.81,198.8,58.77245121]
[1756744462877,4.15062436,198.81,198.8,39.44]
[1756744462878,34.36868938,198.81,198.8,39.44]
[1756744463080,4.15062436,198.81,198.8,39.44]
[1756744463285,30.15062436,198.81,198.8,39.44]
[1756744465086,29.47062436,198.81,198.8,39.44]
[1756744466980,30.15062436,198.81,198.8,39.44]
[1756744467681,29.47062436,198.81,198.8,30.93487263]
[1756744467886,30.15062436,198.81,198.8,30.93487263]
[1756744468073,4.15062436,198.81,198.8,30.93487263]
[1756744468559,30.15062436,198.81,198.8,30.93487263]
[1756744469062,26.0,198.8,198.79,0.12]
[1756744469261,4.05062436,198.8,198.79,39.56]
[1756744469463,3.37062436,198.8,198.79,39.56]
[1756744473468,3.37062436,198.8,198.79,0.12]
[1756744473469,4.05062436,198.8,198.79,0.12]
[1756744473666,4.05062436,198.8,198.79,35.58]
[1756744473667,8.41074759,198.8,198.79,35.58]
[1756744473870,30.19278593,198.8,198.79,35.58]
[1756744475388,34.40834113,198.8,198.79,35.58]
[1756744475585,33.58617956,198.8,198.79,35.58]
[1756744475786,29.37062436,198.8,198.79,35.58]
[1756744475996,29.37062436,198.8,198.79,36.26]
[1756744476793,3.37062436,198.8,198.79,36.26]
[1756744476996,26.0,198.8,198.79,35.58]
[1756744477219,29.37062436,198.8,198.79,35.58]
[1756744478075,3.37062436,198.8,198.79,35.58]
[1756744478275,7.68617956,198.81,198.79,35.58]
[1756744478475,29.37062436,198.8,198.79,35.58]
[1756744478790,29.37062436,198.8,198.79,36.26]
[1756744479776,3.37062436,198.8,198.79,36.26]
[1756744479980,3.47062436,198.81,198.79,55.59245121]
[1756744480183,0.1,198.81,198.8,20.01245121]
[1756744480410,3.47062436,198.81,198.8,20.01245121]
[1756744481329,29.47062436,198.81,198.8,20.01245121]
[1756744482011,29.47062436,198.81,198.8,19.33245121]
[1756744482407,3.47062436,198.81,198.8,19.33245121]
[1756744482927,26.0,198.8,198.79,0.12]
[1756744483092,29.37062436,198.8,198.79,39.56]
[1756744483294,30.17278593,198.8,198.79,0.12]
[1756744483591,30.17278593,198.8,198.79,39.34908812]
[1756744483792,35.80044524,198.8,198.79,39.34908812]
[1756744484009,30.17278593,198.8,198.79,39.34908812]
[1756744485510,26.14216157,198.79,198.77,0.12]
[1756744485700,9.14077407,198.78,198.77,0.12]
[1756744485898,4.17278593,198.78,198.77,31.34]
[1756744487597,9.14350347,198.78,198.77,31.34]
[1756744487827,4.17278593,198.78,198.77,31.34]
[1756744488511,4.17278593,198.78,198.77,0.12]
[1756744488717,12.4880772,198.78,198.77,0.12]
[1756744489109,4.17278593,198.78,198.77,0.12]
[1756744489303,3.51278593,198.78,198.77,0.12]
[1756744490214,3.37062436,198.78,198.77,0.12]
[1756744490516,4.17278593,198.78,198.77,0.12]
[1756744491115,3.51278593,198.78,198.77,0.12]
[1756744493218,11.8280772,198.78,198.77,0.12]
[1756744493415,11.8280772,198.78,198.77,0.8]
[1756744493416,11.68591563,198.78,198.77,0.8]
[1756744493616,11.68591563,198.78,198.77,20.13245121]
[1756744493617,3.37062436,198.78,198.77,20.13245121]
[1756744494020,29.37062436,198.78,198.77,20.13245121]
[1756744494814,7.60164838,198.78,198.77,20.13245121]
[1756744495308,29.37062436,198.78,198.77,20.13245121]
[1756744496425,3.37062436,198.78,198.77,20.13245121]
[1756744496626,7.60409737,198.78,198.77,33.72804522]
[1756744496931,3.37062436,198.78,198.77,33.72804522]
[1756744497105,33.60409737,198.78,198.77,33.72804522]
[1756744497309,3.37062436,198.78,198.77,33.72804522]
[1756744498309,29.37062436,198.78,198.77,33.72804522]
[1756744499704,29.37062436,198.78,198.77,73.16804522]
[1756744500232,3.37062436,198.78,198.77,73.16804522]
[1756744500417,3.37062436,198.79,198.78,32.92804522]
[1756744500746,3.37062436,198.79,198.78,73.04804522]
[1756744502322,3.37062436,198.79,198.78,33.60804522]
[1756744502534,3.37062436,198.79,198.78,73.04804522]
[1756744504412,26.0,198.78,198.77,0.12]
[1756744504722,29.37062436,198.78,198.77,0.12]
[1756744505026,33.60409737,198.78,198.77,39.56]
[1756744505218,33.60409737,198.78,198.77,58.89245121]
[1756744505811,30.09062436,198.78,198.77,0.12]
[1756744506028,26.0,198.76,198.75,0.12]
[1756744506234,29.37062436,198.76,198.75,0.12]
[1756744506530,29.37062436,198.76,198.75,39.56]
[1756744506531,30.09062436,198.76,198.75,39.56]
[1756744506831,29.37062436,198.76,198.75,39.56]
[1756744507022,3.37062436,198.76,198.75,39.56]
[1756744507713,29.37062436,198.76,198.75,39.56]
[1756744508656,30.09062436,198.76,198.75,0.12]
[1756744508808,30.09062436,198.76,198.75,39.56]
[1756744509434,3.37062436,198.76,198.75,39.56]
[1756744513745,7.60276183,198.76,198.75,59.58245121]
[1756744513953,3.37062436,198.76,198.75,59.58245121]
[1756744516333,29.37062436,198.76,198.75,59.58245121]
[1756744516642,33.60276183,198.76,198.75,59.58245121]
[1756744519167,3.37062436,198.76,198.75,73.17804522]
[1756744519529,3.37062436,198.76,198.75,73.32020679]
[1756744519836,29.37062436,198.78,198.77,32.92804522]
[1756744520020,3.37062436,198.78,198.77,73.05804522]
[1756744520646,3.37062436,198.78,198.77,73.20020679]
[1756744520857,3.40062436,198.79,198.78,32.92804522]
[1756744521052,0.03,198.79,198.78,33.76020679]
[1756744521331,0.03,198.79,198.78,38.79089398]
[1756744521833,0.03,198.79,198.78,33.76020679]
[1756744522026,0.03,198.79,198.78,78.21089398]
[1756744522730,0.03,198.79,198.78,82.46942975]
[1756744527032,0.1,198.81,198.8,33.07020679]
[1756744527230,0.1,198.81,198.8,77.25176066]
[1756744527549,0.1,198.81,198.8,77.94176066]
[1756744528129,0.1,198.81,198.8,84.98761374]
[1756744528754,0.1,198.81,198.8,36.27889689]
[1756744529057,0.1,198.81,198.8,75.69889689]
[1756744529234,0.1,198.81,198.8,80.72907797]
[1756744530250,0.1,198.81,198.8,75.69889689]
[1756744530753,0.1,198.81,198.8,84.98761374]
[1756744531053,0.1,198.81,198.8,79.93743266]
[1756744531255,0.1,198.81,198.8,84.96761374]
[1756744532953,0.1,198.81,198.8,79.93743266]
[1756744533343,0.1,198.81,198.8,84.96761374]
[1756744534839,0.1,198.81,198.8,79.93743266]
[1756744535935,0.1,198.81,198.8,84.96761374]
[1756744536137,0.1,198.81,198.8,79.93743266]
[1756744536546,0.1,198.81,198.8,75.67889689]
[1756744539868,0.1,198.81,198.8,80.70907797]
[1756744540041,0.1,198.81,198.8,84.96761374]
[1756744543157,0.1,198.81,198.8,36.27889689]
[1756744543370,0.1,198.81,198.8,75.64889689]
[1756744543745,0.1,198.81,198.8,80.67907797]
[1756744544269,0.1,198.81,198.8,45.53761374]
[1756744544470,0.1,198.81,198.8,84.93761374]
[1756744546171,0.03,198.82,198.81,13.73775558]
[1756744546386,0.03,198.82,198.81,57.98874256]
[1756744547250,0.03,198.82,198.81,65.03393563]
[1756744547673,0.03,198.82,198.81,65.53692843]
[1756744547856,1e-08,198.82,198.81,65.53692843]
[1756744549475,0.1,198.87,198.86,32.92804522]
[1756744549682,0.1,198.87,198.86,77.21160889]
[1756744549857,0.1,198.87,198.86,77.87160889]
[1756744550063,0.1,198.87,198.86,79.88677289]
[1756744550652,0.1,198.87,198.86,84.91543627]
[1756744551165,0.1,198.87,198.86,80.6569005]
[1756744551367,0.1,198.87,198.86,79.22677289]
[1756744551873,0.1,198.87,198.86,79.88677289]
[1756744552571,0.1,198.87,198.86,84.91543627]
[1756744552779,0.1,198.87,198.86,35.58823712]
[1756744552957,0.1,198.87,198.86,79.22677289]
[1756744553564,0.1,198.87,198.86,74.96823712]
[1756744556978,0.76,198.87,198.86,72.30804522]
[1756744557570,0.1,198.87,198.86,72.30804522]
[1756744557791,0.1,198.87,198.86,78.13887017]
[1756744557974,0.1,198.87,198.86,80.15423717]
[1756744558166,0.1,198.87,198.86,84.41277294]
[1756744559291,0.1,198.87,198.86,84.91563927]
[1756744559475,0.03,198.89,198.88,32.92804522]
[1756744559676,0.03,198.89,198.88,77.21155832]
[1756744559987,0.03,198.89,198.88,77.87155832]
[1756744560287,0.03,198.89,198.88,79.88651932]
[1756744560471,0.03,198.89,198.88,35.58798355]
[1756744560672,0.03,198.89,198.88,79.88651932]
[1756744560996,0.03,198.89,198.88,84.914677]
[1756744561661,0.03,198.91,198.9,33.07020679]
[1756744561871,0.03,198.91,198.9,77.21150776]
[1756744562089,0.03,198.91,198.9,77.87150776]
[1756744562389,0.03,198.91,198.9,79.88616476]
[1756744562590,0.03,198.91,198.9,84.91381684]
[1756744563090,0.1,198.92,198.91,13.73775558]
[1756744563386,0.1,198.92,198.91,37.98874256]
[1756744563597,0.1,198.92,198.91,43.01614188]
[1756744564189,0.1,198.92,198.91,47.04734088]
[1756744564697,0.1,198.92,198.91,147.34734088]
[1756744564990,0.1,198.99,198.98,33.07020679]
[1756744565290,0.1,198.99,198.98,72.43020679]
[1756744567691,0.1,198.99,198.98,82.38437327]
[1756744567898,0.1,198.99,198.98,82.2103755]
[1756744568099,0.1,198.99,198.98,76.51474479]
[1756744568698,0.1,198.99,198.98,37.15474479]
[1756744568872,0.1,198.99,198.98,72.43020679]
[1756744569070,0.1,198.99,198.98,36.44474579]
[1756744569304,0.81,198.99,198.98,33.07020679]
[1756744569474,0.81,198.99,198.98,72.43020679]
[1756744569809,0.81,198.99,198.98,33.07020679]